Cogmind - Beta 15 *** ADVENTURER MODE // 2025.07.06 @ 19:45:07 Player: FrigidRock Result: Destroyed by XG-SWB(j) with Overtuned Pulse Rifle Performance ------------- Evolutions (0) 0 Regions Visited (3) 600 Robots Destroyed (29) 145 Value Destroyed (898) 898 Prototype IDs (17) 340 Alien Tech Used (0) 0 Bonus (791) 791 TOTAL SCORE: 2774 Bonus ------- Registered with UFD 300 Met Optimus in HQ 500 Friendly Fire -9 Cogmind --------- Core Integrity 0/250 Matter 300/300 Energy 100/100 System Corruption 1% Temperature Cool (12) Movement Core (50) Location -8/Scraptown Parts ------- > --- POWER (1) -------- (None) > --- PROPULSION (2) --- (None) > --- UTILITY (2) ------ (None) > --- WEAPON (2) ------- (None) > --- INVENTORY (5) ---- Aluminum Leg Arachnoskeleton Multitool Peak State ------------ > --- POWER ------------ Nuclear Core Makeshift Power Source > --- PROPULSION ------- Overtuned Titanium Leg Makeshift Leg > --- UTILITY ---------- Small Storage Unit Improved Terrain Scanner > --- WEAPON ----------- Powered Cannon > --- INVENTORY -------- Aluminum Leg Overtuned Titanium Leg Arachnoskeleton Multitool Scrap Shield Fragment Scrap Shield Fragment [Rating: 35] Favorites ----------- Power Makeshift Power Source Engine Makeshift Power Source Power Core Nuclear Core Propulsion Aluminum Leg Leg Aluminum Leg Wheel Subdweller Monowheel Utility Small Storage Unit Device Improved Terrain Scanner Storage Small Storage Unit Weapon Powered Cannon Energy Gun Overtuned Pulse Rifle Energy Cannon Powered Cannon Ballistic Gun Light Assault Rifle Special Weapon Flamer Build | -11 -10 -10 -8 ------- Run | Yrd Mat Sub Scr Slots Evolved . | . . . . Power . | . . . . Propulsion . | . . . . Utility . | . . . . Weapon . | . . . . Parts Attached 24 | 7 . 11 6 Power 7 | 1 . 5 1 Engine 6 | 1 . 5 . Core 1 | . . . 1 Reactor . | . . . . Propulsion 7 | 2 . 2 3 Treads . | . . . . Leg 6 | 2 . 1 3 Wheel 1 | . . 1 . Hover . | . . . . Flight . | . . . . Utility 2 | 2 . . . Device 1 | 1 . . . Storage 1 | 1 . . . Processor . | . . . . Hackware . | . . . . Protection . | . . . . Artifact . | . . . . Weapon 8 | 2 . 4 2 Energy Gun 2 | . . . 2 Energy Cannon 2 | . . 2 . Ballistic Gun 3 | 2 . 1 . Ballistic Cannon . | . . . . Launcher . | . . . . Special Weapon 1 | . . 1 . Impact Weapon . | . . . . Slashing Weapon . | . . . . Piercing Weapon . | . . . . Special Melee Weapon . | . . . . Unidentified Prototypes 1 | . . 1 . Parts Lost 8 | . . 3 5 Power 2 | . . 1 1 Propulsion 2 | . . 1 1 Utility 1 | . . . 1 Weapon 3 | . . 1 2 Highest Loss Streak 4 | . . 2 4 To Critical Strikes . | . . . . Average Backups 3 | . 1 3 2 Power . | . 1 . . Propulsion . | . . . 1 Utility . | . . . . Weapon 1 | . . 2 . Tool/Special . | . . . . Unused Backups 5 | . . 2 3 Power 1 | . . 1 . Propulsion 2 | . . . 2 Utility . | . . . . Weapon 1 | . . 1 . Tool/Special 1 | . . . 1 Average Slot Usage (%) 85 | . 100 88 79 Engine 16 | . 14 18 11 Core 1 | . . . 5 Leg 24 | . 28 24 24 Device 12 | . 14 12 11 Storage 12 | . 14 12 12 Energy Cannon 11 | . . 11 11 Ballistic Gun 3 | . 28 4 . Peak Build Rating 35 | 9 9 32 35 Average Rating 25 | 5 9 24 29 On Entrance 12 | . 9 9 30 Naked Turns 7 | . . . 7 Heaviest Build 26 | 11 11 24 26 Greatest Support 39 | 20 20 30 39 Greatest Overweight (x) 5 | . . 2 5 Average Overweight (x) . | . . . . Largest Inventory Capacity 8 | 8 8 8 8 Average Capacity 7 | 6 8 8 7 Most Carried 8 | 1 1 8 8 Average Carried 6 | . 1 7 6 Final Capacity 8 | 8 8 8 5 Final Carried 8 | 1 1 8 5 Class Distribution -------------------- 85% | Mutant 10% | Derelict-Mutant 4% | Scavenger-Mutant Dominant Class ---------------- Mutant | -10/Materials Mutant | -10/Subcaves Mutant | -8/Scraptown Resources | -11 -10 -10 -8 ----------- Run | Yrd Mat Sub Scr Matter Collected 543 | 252 54 177 60 Remotely . | . . . . Salvage Created 1165 | 176 57 647 285 Parts 80 | 19 5 42 14 Haulers Intercepted . | . . . . Recyclers Shooed 1 | 1 . . . Parts Field Recycled . | . . . . Retrieved Matter . | . . . . Parts Self-Destructed 19 | . . 19 . Prevented . | . . . . Kills | -11 -10 -10 -8 ------- Run | Yrd Mat Sub Scr Combat Hostiles Destroyed 22 | . 2 15 5 Guns 3 | . 2 1 . Cannons 17 | . . 13 4 Classes Destroyed 10 | 2 2 2 4 Tunneler 5 | 5 . . . Recycler 1 | 1 . . . Watcher 1 | . 1 . . Swarmer 2 | . 2 . . Grunt 2 | . . 2 . Subdweller 13 | . . 13 . Federalist 1 | . . . 1 Explorer 1 | . . . 1 Scrapper 2 | . . . 2 Mutant 1 | . . . 1 Best Kill Streak 6 | 6 3 3 2 Combat Bots Only 3 | . 2 3 2 Max Kills in Single Turn 2 | 1 2 1 1 Gunslinging 1 | . 1 . . Exploded . | . . . . Melee . | . . . . Uniques/NPCs Destroyed . | . . . . Combat | -11 -10 -10 -8 -------- Run | Yrd Mat Sub Scr Hostile Shots Fired 129 | . 13 70 46 Missed 42 | . 7 24 11 Hits 87 | . 6 46 35 Projectile 87 | . 6 46 35 Critical Strikes 3 | . . 1 2 Part Disruptions 1 | . . . 1 Damage Taken 1232 | . 51 797 384 Core 254 | . 24 144 86 Absorbed by Shields . | . . . . Ignored by Resistances 337 | . 17 208 112 Core Remaining (%) 100 | 100 . . . Volleys Fired 135 | 11 7 103 14 Largest 2 | 2 2 2 2 Hottest 180 | 40 40 180 160 Shots Fired 198 | 22 14 148 14 Gun 73 | 22 14 35 2 Cannon 113 | . . 101 12 Launcher . | . . . . Special 12 | . . 12 . Kinetic 71 | 22 14 35 . Thermal 127 | . . 113 14 Explosive . | . . . . Electromagnetic . | . . . . Robot Hit Streak 12 | 8 10 12 6 Robot Miss Streak 3 | 2 3 1 1 Penetration Max . | . . . . Secondary Targets 1 | . 1 . . Max Gunslinging Chain 1 | . 1 . . Shots Hit Robots 80 | 16 7 46 11 Core Hits 34 | 9 5 16 4 Critical Kills 2 | . . 1 1 Critical Parts Destroyed . | . . . . Critical Strikes 2 | . . 1 1 Meltdown 2 | . . 1 1 Melee Attacks . | . . . . Impact . | . . . . Slashing . | . . . . Piercing . | . . . . Sneak Attacks . | . . . . Combat Hostiles . | . . . . Follow-up Attacks . | . . . . Damage Inflicted 2156 | 151 77 1347 581 Guns 369 | 151 77 121 20 Cannons 1742 | . . 1181 561 Explosions . | . . . . Melee . | . . . . Ramming . | . . . . Kinetic 349 | 151 77 121 . Thermal 1807 | . . 1226 581 Explosive . | . . . . Electromagnetic . | . . . . Impact . | . . . . Slashing . | . . . . Piercing . | . . . . Highest Corruption 1 | . . . 1 Average Corruption 1 | . . . 1 Corruption Purged . | . . . . Corruption Blocked . | . . . . Effects 1 | . . . 1 Message Errors 1 | . . . 1 Overload Shots . | . . . . Overflow Damage 91 | . . 32 59 Projectiles 91 | . . 32 59 Explosions . | . . . . Melee . | . . . . Knockbacks . | . . . . Impact . | . . . . Kinetic . | . . . . Secondary . | . . . . Self-Inflicted Damage . | . . . . Shots . | . . . . Rammed . | . . . . Targets Rammed . | . . . . Kicked . | . . . . Crushed . | . . . . Highest Temperature 191 | . 6 191 140 Average Temperature 36 | . 6 18 64 Received Heat Transfer 690 | . 15 457 218 Siege Activations . | . . . . Martial Activations . | . . . . Shielding Activations . | . . . . Robots Disrupted . | . . . . Combat Hostiles . | . . . . Robots Corrupted . | . . . . Combat Hostiles . | . . . . Parts Fried . | . . . . Impact Corruptions . | . . . . Robots Melted 2 | . . 1 1 Combat Hostiles 2 | . . 1 1 Parts Melted 2 | . . 2 . Heat Transferred 986 | . . 949 37 Parts Sabotaged . | . . . . Parts Stolen . | . . . . Parts Stripped . | . . . . Power Chain Reactions . | . . . . Alert | -11 -10 -10 -8 ------- Run | Yrd Mat Sub Scr Maximum Alert Level . | . . . . Low Security (%) 100 | 100 100 . . Level 1 . | . . . . Level 2 . | . . . . Level 3 . | . . . . Level 4 . | . . . . Level 5 . | . . . . High Security . | . . . . Max Security . | . . . . Peak Influence 50 | 15 50 . . Initial 5 | . 5 . . Average 13 | 4 20 . . Influence Increases 167 | 30 57 80 . Destroy 0b10 Robot/C 80 | . 40 40 . Destroy 0b10 Robot/NC 35 | 30 5 . . Destroy Leader 22 | . 12 10 . Lose Combat Pursuer 30 | . . 30 . Influence Decreases 167 | 20 40 107 . Entered New Map 20 | . 5 15 . Time Decay 147 | 20 35 92 . Squads Dispatched . | . . . . Investigation . | . . . . Extermination . | . . . . Reinforcement . | . . . . Assault . | . . . . Garrison . | . . . . Intercept . | . . . . Searches Triggered . | . . . . Construction Impeded . | . . . . Haulers Reinforced . | . . . . Active Scanning Responses . | . . . . Cargo Convoy Interrupts . | . . . . Stealth | -11 -10 -10 -8 --------- Run | Yrd Mat Sub Scr Distress Signals 1 | . 1 . . Communications Jammed . | . . . . Distress Signals . | . . . . Times Spotted 52 | . 8 19 25 Peak Tracking Total 10 | . 7 4 10 Tactical Retreats 2 | . . 2 . Traps | -11 -10 -10 -8 ------- Run | Yrd Mat Sub Scr Traps Triggered 1 | . . 1 . Indirectly . | . . . . Trap Hack Attempts . | . . . . Triggered . | . . . . Disarmed . | . . . . Reprogrammed . | . . . . Reused . | . . . . Traps Extracted . | . . . . Installed . | . . . . Triggered . | . . . . Machines | -11 -10 -10 -8 ---------- Run | Yrd Mat Sub Scr Machines Disabled 2 | . . 1 1 Max in Single Turn 1 | . . 1 1 Machines Repaired . | . . . . Machines Dismantled . | . . . . Machines Sabotaged . | . . . . Overloaded Fab Kills . | . . . . Hacking | -11 -10 -10 -8 --------- Run | Yrd Mat Sub Scr Machines Accessed 10 | . . 2 8 Terminals . | . . . . Fabricators . | . . . . Repair Stations . | . . . . Recycling Units . | . . . . Scanalyzers . | . . . . Garrison Access . | . . . . Total Hacks 63 | . . 13 50 Successful 63 | . . 13 50 Failed . | . . . . Catastrophic . | . . . . Database Lockouts . | . . . . Manual . | . . . . Terminals . | . . . . Fabricators . | . . . . Repair Stations . | . . . . Recycling Units . | . . . . Scanalyzers . | . . . . Garrison Access . | . . . . Terminal Hacks 63 | . . 13 50 Record 61 | . . 12 49 Proto ID Catalog 2 | . . 1 1 Fabricator Hacks . | . . . . Repair Station Hacks . | . . . . Recycling Unit Hacks . | . . . . Scanalyzer . | . . . . Garrison Access Hacks . | . . . . Unauthorized Hacks . | . . . . Terminals . | . . . . Fabricators . | . . . . Repair Stations . | . . . . Recycling Units . | . . . . Scanalyzers . | . . . . Garrison Access . | . . . . Data Cores Recovered . | . . . . Used . | . . . . Hacking Detections . | . . . . Full Trace Events . | . . . . Feedback Events . | . . . . Feedback Blocked . | . . . . Robot Schematics Acquired . | . . . . Robots Built . | . . . . Authchips . | . . . . Time . | . . . . Total Robot Build Rating . | . . . . Part Schematics Acquired . | . . . . Parts Built . | . . . . Authchips . | . . . . Time . | . . . . Total Part Build Rating . | . . . . Parts Repaired . | . . . . Time . | . . . . Parts Recycled . | . . . . Recycled Matter . | . . . . Retrieved Matter . | . . . . Retrieved Components . | . . . . Parts Scanalyzed . | . . . . Part Schematics Acquired . | . . . . Parts Damaged . | . . . . Bothacking | -11 -10 -10 -8 ------------ Run | Yrd Mat Sub Scr Used RIF Installer . | . . . . Robots Hacked . | . . . . Non-combat . | . . . . Combat . | . . . . Robot Hacks Applied . | . . . . Relay Couplers Released . | . . . . Fabnet Peak Effective % . | . . . . Robots Rewired . | . . . . Allies Hacked . | . . . . Hacks Repelled . | . . . . Allies | -11 -10 -10 -8 -------- Run | Yrd Mat Sub Scr Total Allies . | . . . . Largest Group . | . . . . Highest-Rated Group . | . . . . Highest-Rated Ally . | . . . . Total Orders . | . . . . Ally Attacks . | . . . . Total Damage . | . . . . Kills . | . . . . Allies Corrupted . | . . . . Allies Melted 3 | . . . 3 Intel | -11 -10 -10 -8 ------- Run | Yrd Mat Sub Scr Active Infowar (turns) 6697 | 24 127 4650 1896 Terrain 6697 | 24 127 4650 1896 Robot Analysis Total . | . . . . Derelict Logs Recovered 4 | . . 2 2 Drone Launches . | . . . . Drone Recoveries . | . . . . Exploration | -11 -10 -10 -8 ------------- Run | Yrd Mat Sub Scr Turns Passed 6891 | 90 127 4745 1929 Spaces Moved 3336 | 44 76 1796 1420 Core 20 | 3 . . 17 Treads . | . . . . Legs 3198 | 41 76 1678 1403 Wheels 118 | . . 118 . Hover . | . . . . Flight . | . . . . Fastest Speed 50 | 50 120 120 50 Average Speed 128 | 115 120 129 128 Slowest Speed 300 | 120 120 260 300 Overloaded Moves . | . . . . Propulsion Burnouts . | . . . . Robots Hopped . | . . . . Potential Cave-ins 1 | . . 1 . Cave-ins Triggered . | . . . . Exploration Rate (%) 51 | 4 25 88 87 Regions Visited 3 Branch Regions 2 Pre-discovered Areas 4 | . . 3 1 Known Exits Taken . | . . . . Unknown Exits Taken 3 | 1 1 1 . Scrap Searched 8 | . . 5 3 Spaces Dug 16 | . . 16 . Terrain Destroyed 22 | . . 22 . Melee . | . . . . Projectile 22 | . . 22 . AOE . | . . . . Terrain Rammed . | . . . . Walls Destroyed . | . . . . Machines Disabled . | . . . . Actions | -11 -10 -10 -8 --------- Run | Yrd Mat Sub Scr Total 5740 | 62 100 4071 1507 Wait 2203 | . 18 2123 62 Move 3333 | 43 75 1795 1420 Hop . | . . . . Pick Up 19 | 1 . 18 . Fast Attach 16 | 7 . 6 3 Attach 5 | . . 4 1 Detach . | . . . . Swap 6 | . . 3 3 Drop 23 | . . 19 4 Fire 135 | 11 7 103 14 Melee . | . . . . Ram . | . . . . Kick . | . . . . Crush . | . . . . Escape Stasis . | . . . . Rewire . | . . . . Trap . | . . . . Miscellaneous . | . . . . Route ------- -11/Scrapyard -10/Materials (discovered 2 exits: [*Min] / *Sub) -10/Subcaves (discovered 4 exits: [*Mat x2] / *Scr x2) -8/Scraptown (discovered 2 exits: *Fac x2) History --------- Turn | Location | Event 14 | -11/Scrapyard | Discovered new exit (range 15) 91 | -11/Scrapyard | Entered Materials 92 | -10/Materials | Met a group of wandering Federalists 177 | -10/Materials | Discovered new exit (range 13) 200 | -10/Materials | Discovered new exit (range 9) 218 | -10/Materials | Entered Subcaves 219 | -10/Subcaves | Continued accompanying wandering Federalists (3) 219 | -10/Subcaves | Approached by a straggling Scientist 253 | -10/Subcaves | Scientist uncovered a shortcut to Scraptown 301 | -10/Subcaves | Build established: Mutant 462 | -10/Subcaves | Wandering Federalist uncovered a shortcut to Scraptown 555 | -10/Subcaves | A swath of the cavern ceiling suddenly collapsed 711 | -10/Subcaves | Ambushed by Subdwellers from Twisted Machinery 978 | -10/Subcaves | A Subdweller sparked back to life 978 | -10/Subcaves | A Subdweller sparked back to life 978 | -10/Subcaves | A Subdweller sparked back to life 996 | -10/Subcaves | Core integrity fell below 50% 1011 | -10/Subcaves | Found Prototype Energy Cannon 1315 | -10/Subcaves | Discovered new exit (range 8) 1337 | -10/Subcaves | A swath of the cavern ceiling suddenly collapsed 1600 | -10/Subcaves | Shifting Twisted Machinery released Mak. Power Source 1611 | -10/Subcaves | Shifting Twisted Machinery released Mak. Leg 1612 | -10/Subcaves | Shifting Twisted Machinery released Battle Rifle 1617 | -10/Subcaves | Build established: Scavenger-Mutant 1637 | -10/Subcaves | Identified Powered Cannon 1638 | -10/Subcaves | Attached Powered Cannon, gained temporary slot: Power 1656 | -10/Subcaves | Shifting Twisted Machinery released Sub. Optics 1924 | -10/Subcaves | Build established: Mutant 1984 | -10/Subcaves | Discovered new exit (range 15) 3550 | -10/Subcaves | Visited Clippyterm 3554 | -10/Subcaves | Learned location of Extension (-4) 3989 | -10/Subcaves | Shifting Twisted Machinery released Sub. Power Source 4109 | -10/Subcaves | Shifting Twisted Machinery released Battle Rifle 4186 | -10/Subcaves | Visited 4L-MR0's lab 4208 | -10/Subcaves | Found Arachnoskeleton 4724 | -10/Subcaves | Learned location of Zion (-6) 4724 | -10/Subcaves | Met a Zionite searching for "candidates" 4737 | -10/Subcaves | Learned location of Storage (-8) 4963 | -10/Subcaves | Entered Scraptown 4984 | -8/Scraptown | Heard Great Nut preacher, LISTEN AND RECITE! 5103 | -8/Scraptown | Visited UFD Registry 5103 | -8/Scraptown | Registered with UFD as "Wrenchcycle" 5131 | -8/Scraptown | Visited Junk Repository 5181 | -8/Scraptown | Visited Assassins FH 5244 | -8/Scraptown | Scanned Subdweller tech in exchange for log data 5248 | -8/Scraptown | Learned location of 2 exits from Factory 5249 | -8/Scraptown | Learned Research stockpile data 5288 | -8/Scraptown | Guru changed UFD alias to "Pipechip" 5333 | -8/Scraptown | Discovered new exit (range 5) 5677 | -8/Scraptown | Visited Fellowship of the Rings 5716 | -8/Scraptown | Visited Cave Peace 5755 | -8/Scraptown | Visited Spacefarers 5838 | -8/Scraptown | Visited Symbiants 5875 | -8/Scraptown | Visited Cyclists 5889 | -8/Scraptown | Entered Cyclist Reading Room 6059 | -8/Scraptown | Visited DA-N13 Charitable Foundation 6075 | -8/Scraptown | Found DCF Scrap (29 items) 6139 | -8/Scraptown | Visited LU-1G1's Boring Crew 6230 | -8/Scraptown | Visited Science Guys 6377 | -8/Scraptown | Build established: Derelict-Mutant 6520 | -8/Scraptown | Met Optimus 6520 | -8/Scraptown | Accepted into 0bPrime 6724 | -8/Scraptown | Civil war broke out across Scraptown 6798 | -8/Scraptown | Identified exit to Factory 6809 | -8/Scraptown | Lost 5 allies 6850 | -8/Scraptown | Optimus destroyed in the chaos of civil war 6869 | -8/Scraptown | Visited Derelict Rescue Squad 6885 | -8/Scraptown | Released all parts (4) 6888 | -8/Scraptown | Core integrity fell below 20% 6892 | -8/Scraptown | Destroyed by XG-SWB(j) with Overtuned Pulse Rifle Last Messages --------------- 06865_ NQ-86O(j): "We are one!" 06867_ Ovr. Pulse Rifle recovered from malfunction. 06875_ Bolt penetrates NQ-86O(j). 06875_ NQ-86O(j) suffers critical hit (Destroy). 06877_ Acquired 10 matter. 06878_ Critical hit (Burn: +50). 06878_ Penetrated by Bolt. 06879_ NQ-86O(j) suffers critical hit (Burn). 06879_ NQ-86O(j) destroyed. 06881_ Penetrated by Bolt. 06881_ Nuclear Core destroyed. 06883_ Ovr. Pulse Rifle destroyed. 06883_ Penetrated by Bolt. 06884_ Dropped Scrap Shield Fragment. 06885_ Released Ovr. Titanium Leg. 06885_ Released Ovr. Pulse Rifle. 06885_ Released Sml. Storage Unit. 06885_ Released Ovr. Titanium Leg. 06886_ Penetrated by Bolt. 06886_ Bolt penetrates Machine. Map ----- +----------------------------------------------------+ | ?????????????????????????????????????????????????? | | ?????????????????????????????????????????????????? | | ?????????????????????????????????????????????????? | | ?????????????????????????????????????????????????? | | ?????????????????????????????????????????????????? | | ?????????????????????????????????????????????????? | | ?????????????????????????????????????????????????? | | ?????????????????????????????????????????????????? | | ???????????????????????????????????